fUSD/lending_fUSD_20260404
["ID","MTS","AMOUNT","RATE_DAILY","PERIOD"]
[419696151,1775308241387,-471.79722539,0.0001599,2]
[419696152,1775308241397,-151.0,0.00015997,2]
[419696153,1775308241407,-500.0,0.00015998,2]
[419696154,1775308241417,-500.0,0.00015998,2]
[419696155,1775308241427,-500.0,0.00015998,2]
[419696156,1775308241438,-666.0,0.00015999,2]
[419696157,1775308241448,-666.0,0.00015999,2]
[419696158,1775308241457,-155019.7221236,0.00015999,2]
[419696159,1775308241467,-500.0,0.00015999,2]
[419696160,1775308241477,-500.0,0.00015999,2]
[419696161,1775308241486,-500.0,0.00015999,2]
[419696162,1775308241495,-500.0,0.00015999,2]
[419696163,1775308241505,-500.0,0.00015999,2]
[419696164,1775308241514,-500.0,0.00015999,2]
[419696165,1775308241523,-500.0,0.00015999,2]
[419696166,1775308241535,-500.0,0.00015999,2]
[419696167,1775308241545,-500.0,0.00015999,2]
[419696168,1775308241555,-500.0,0.00015999,2]
[419696169,1775308241564,-500.0,0.00015999,2]
[419696170,1775308241574,-500.0,0.00015999,2]
[419696171,1775308241584,-500.0,0.00015999,2]
[419696172,1775308241594,-500.0,0.00015999,2]
[419696173,1775308241604,-500.0,0.00015999,2]
[419696174,1775308241614,-500.0,0.00015999,2]
[419696175,1775308241623,-500.0,0.00015999,2]
[419696176,1775308241633,-500.0,0.00015999,2]
[419696177,1775308241642,-500.0,0.00015999,2]
[419696178,1775308241651,-500.0,0.00015999,2]
[419696179,1775308241660,-500.0,0.00015999,2]
[419696180,1775308241670,-500.0,0.00015999,2]
[419696181,1775308241679,-500.0,0.00015999,2]
[419696182,1775308241688,-500.0,0.00015999,2]
[419696183,1775308241697,-500.0,0.00015999,2]
[419696184,1775308241707,-500.0,0.00015999,2]
[419696185,1775308241716,-500.0,0.00015999,2]
[419696186,1775308241725,-500.0,0.00015999,2]
[419696187,1775308241735,-500.0,0.00015999,2]
[419696188,1775308241744,-500.0,0.00015999,2]
[419696189,1775308241754,-500.0,0.00015999,2]
[419696190,1775308241763,-500.0,0.00015999,2]
[419696191,1775308241772,-500.0,0.00015999,2]
[419696192,1775308241782,-500.0,0.00015999,2]
[419696193,1775308241791,-500.0,0.00015999,2]
[419696194,1775308241800,-500.0,0.00015999,2]
[419696195,1775308241809,-500.0,0.00015999,2]
[419696196,1775308241819,-500.0,0.00015999,2]
[419696197,1775308241828,-500.0,0.00015999,2]
[419696198,1775308241837,-500.0,0.00015999,2]
[419696199,1775308241846,-500.0,0.00015999,2]
[419696200,1775308241856,-500.0,0.00015999,2]
[419696201,1775308241865,-500.0,0.00015999,2]
[419696202,1775308241874,-500.0,0.00015999,2]
[419696203,1775308241883,-500.0,0.00015999,2]
[419696204,1775308241893,-500.0,0.00015999,2]
[419696205,1775308241903,-500.0,0.00015999,2]
[419696206,1775308241913,-500.0,0.00015999,2]
[419696207,1775308241923,-520.24272845,0.00015999,2]
[419696208,1775308241933,-500.0,0.00015999,2]
[419696209,1775308241943,-500.0,0.00015999,2]
[419696210,1775308241955,-500.0,0.00015999,2]
[419696211,1775308241965,-186.15865542,0.00015999,2]
[419696212,1775308241977,-2794.6198336,0.00015999,2]
[419696213,1775308241987,-39442.4333038,0.00015999,2]
[419696214,1775308241996,-4289.0,0.00016,5]
[419696215,1775308242006,-3431.0,0.00016,5]
[419696216,1775308242016,-341661.0527665,0.00016,2]
[419696217,1775308242126,-925.0,0.0001586,2]
[419696218,1775308242136,-171656.4973146,0.00016,2]
[419696219,1775308242147,-113885.25585598,0.00016,2]
[419696220,1775308242158,-75508.39981073,0.00016,2]
[419696221,1775308242169,-403.23497499,0.00016,2]
[419696222,1775308242212,-494.87937873,0.00016,2]
[419696233,1775308242998,-5531.0,0.00016,2]
[419696234,1775308243025,-27720.90998785,0.00016,2]
[419696235,1775308243297,-13515.63262764,0.00016,2]
[419696236,1775308243405,-500.0,0.00016,2]
[419696237,1775308243467,-3432.95157892,0.00016,2]
[419696244,1775308246179,-1646.19999996,0.00015899,2]
[419696245,1775308246223,-807.51110822,0.00015899,2]
[419696246,1775308246280,-2546.28889182,0.00015899,2]
[419696247,1775308246290,-1872.59307815,0.00016,2]
[419696248,1775308246336,-3970.14,0.00016,2]
[419696249,1775308246392,-28028.11980498,0.00016,2]
[419696250,1775308246404,-1166.83893947,0.00016,2]
[419696253,1775308246790,-950.43221416,0.00016,2]
[419696258,1775308338466,186.80465564,0.0001265,10]
[419696328,1775309010427,300.0,0.0001265,10]
[419696330,1775309102411,150.0,9.728e-05,2]
[419696342,1775309350629,-1215.994356,9.878e-05,2]
[419696343,1775309371538,874.04328479,9.87e-05,2]
[419696349,1775309431970,-3521.19720196,9.878e-05,2]
[419696350,1775309431979,-1079.54718327,9.878e-05,2]
[419696351,1775309431990,-2033.32099426,9.878e-05,2]
[419696352,1775309432039,-1887.13182247,9.878e-05,2]
[419696353,1775309432050,-383.81132686,9.878e-05,2]
[419696354,1775309432060,-292.0,9.878e-05,2]
[419696355,1775309432071,-419.80966941,0.00010239,2]
[419696356,1775309432082,-1200.0,0.00010398,2]
[419696357,1775309432092,-1200.0,0.00010399,2]
[419696358,1775309432102,-300.0,0.00010399,2]
[419696359,1775309432111,-300.0,0.00010399,2]
[419696360,1775309432123,-300.0,0.00010399,2]
[419696361,1775309432132,-5533.0,0.000104,5]
[419696362,1775309432149,-5000.0,0.00010866,2]
[419696363,1775309432160,-250.0,0.00010866,2]
[419696364,1775309432170,-5000.0,0.00010866,2]
[419696365,1775309432180,-250.0,0.00010976,2]
[419696366,1775309432190,-191.00508003,0.00011403,2]
[419696367,1775309432199,-217.0,0.00011434,2]
[419696368,1775309432208,-300.0,0.00011434,2]
[419696369,1775309432218,-300.0,0.00011434,2]
[419696370,1775309432228,-1680.0,0.00011438,2]
[419696371,1775309432237,-305.0,0.00011522,2]
[419696372,1775309432248,-303.0,0.00011522,2]
[419696373,1775309432258,-8108.03,0.0001154,2]
[419696374,1775309432268,-151.0,0.00011758,2]
[419696375,1775309432279,-461.39,0.00011816,2]
[419696376,1775309432289,-150.0,0.00011836,2]
[419696377,1775309432299,-500.0,0.00011837,2]
[419696378,1775309432311,-151.0,0.00011837,2]
[419696379,1775309432321,-151.0,0.00011837,2]
[419696380,1775309432332,-200.0,0.00011837,2]
[419696382,1775309432341,-151.0,0.00011837,2]
[419696383,1775309432351,-151.0,0.00011837,2]
[419696384,1775309432360,-151.0,0.00011837,2]
[419696385,1775309432369,-151.0,0.00011837,2]
[419696386,1775309432379,-500.0,0.00011837,2]
[419696387,1775309432388,-151.0,0.00011837,2]
[419696389,1775309432398,-628.61275219,0.00011837,2]
[419696391,1775309432408,-151.0,0.00011837,2]
[419696393,1775309432417,-151.0,0.00011837,2]
[419696395,1775309432426,-151.0,0.00011837,2]
[419696396,1775309432435,-151.0,0.00011837,2]
[419696397,1775309432444,-419.80966941,0.00011982,2]
[419696399,1775309432454,-166.66,0.00012091,2]
[419696401,1775309432463,-25687.76,0.00012193,2]
[419696403,1775309432472,-1991.49,0.00012335,2]
[419696405,1775309432481,-200.0,0.00012385,2]
[419696407,1775309432491,-500.0,0.00012521,2]
[419696409,1775309432500,-1200.0,0.00012582,2]
[419696411,1775309432511,-609.24093173,0.00012595,2]
[419696413,1775309432520,-500.0,0.00012595,2]
[419696415,1775309432529,-206.0,0.00012645,2]
[419696417,1775309432538,-169.0,0.0001265,3]
[419696419,1775309432547,-150.0,0.00012913,2]
[419696422,1775309432557,-250.0,0.00013052,2]
[419696425,1775309432566,-166.66,0.00013089,2]
[419696428,1775309432576,-500.0,0.00013111,2]
[419696431,1775309432585,-166.66,0.00013699,2]
[419696434,1775309432595,-793.67,0.00013702,2]
[419696437,1775309432605,-793.67,0.00013702,2]
[419696440,1775309432615,-793.67,0.00013702,2]
[419696443,1775309432625,-404953.4595,0.00013712,2]
[419696446,1775309432634,-419.80966941,0.00013724,2]
[419696449,1775309432648,-200.0,0.00013796,2]
[419696451,1775309432657,-2500.0,0.00013812,2]
[419696453,1775309432667,-166.66,0.00013836,2]
[419696455,1775309432677,-1442.23,0.00013885,2]
[419696457,1775309432686,-6958.24943466,0.00013902,2]
[419696459,1775309432696,-501.13129759,0.00013973,2]
[419696461,1775309432706,-500.0,0.00013973,2]
[419696463,1775309432716,-500.0,0.00013973,2]
[419696465,1775309432725,-500.0,0.00013973,2]
[419696467,1775309432735,-501.90683054,0.00013973,2]
[419696469,1775309432744,-500.0,0.00013973,2]
[419696471,1775309432753,-166.66,0.00013973,2]
[419696473,1775309432763,-207.249789,0.00014,2]
[419696475,1775309432772,-166.66,0.00014087,2]
[419696477,1775309432783,-166.66,0.0001411,2]
[419696479,1775309432793,-500.0,0.00014121,2]
[419696481,1775309432803,-341.0,0.00014166,2]
[419696483,1775309432814,-328.0,0.00014219,2]
[419696484,1775309432824,-166.66,0.00014247,2]
[419696487,1775309432833,-500.0,0.00014356,2]
[419696489,1775309432843,-800.0,0.00014356,2]
[419696491,1775309432852,-166.66,0.00014384,2]
[419696493,1775309432862,-500.0,0.00014399,2]
[419696495,1775309432871,-215.15562511,0.000144,2]
[419696497,1775309432881,-150.0,0.000144,2]
[419696499,1775309432890,-150.0,0.000144,2]
[419696501,1775309432901,-150.0,0.000144,2]
[419696503,1775309432910,-150.0,0.000144,2]
[419696505,1775309432921,-150.0,0.000144,2]
[419696507,1775309432930,-150.0,0.000144,2]
[419696509,1775309432940,-150.0,0.000144,2]
[419696511,1775309432949,-150.0,0.000144,2]
[419696513,1775309432960,-150.0,0.000144,2]
[419696515,1775309432969,-150.0,0.000144,2]
[419696517,1775309432980,-150.0,0.000144,2]
[419696519,1775309432990,-150.0,0.000144,2]
[419696521,1775309433002,-150.0,0.000144,2]
[419696523,1775309433011,-790.0,0.00014442,2]
[419696525,1775309433020,-226.164166,0.00014516,2]
[419696528,1775309433031,-1000.0,0.00014521,2]
[419696530,1775309433040,-150.0,0.00014578,2]
[419696531,1775309433049,-150.0,0.00014578,2]
[419696533,1775309433059,-150.0,0.00014578,2]
[419696535,1775309433069,-150.0,0.00014578,2]
[419696537,1775309433079,-150.0,0.000146,2]
[419696539,1775309433089,-150.0,0.0001472,2]
[419696541,1775309433098,-150.0,0.00014756,2]
[419696543,1775309433108,-150.0,0.00014756,2]
[419696545,1775309433117,-150.0,0.00014756,2]
[419696547,1775309433126,-150.0,0.00014756,2]
[419696549,1775309433136,-150.0,0.000148,2]
[419696551,1775309433145,-150.0,0.000148,2]
[419696553,1775309433154,-501.7767113,0.000148,2]
[419696555,1775309433165,-500.0,0.000148,2]
[419696557,1775309433175,-500.0,0.000148,2]
[419696559,1775309433184,-150.0,0.00014933,2]
[419696561,1775309433195,-150.0,0.00014933,2]
[419696563,1775309433205,-150.0,0.00014933,2]
[419696565,1775309433214,-150.0,0.00014933,2]
[419696567,1775309433223,-150.0,0.00014933,2]
[419696570,1775309433234,-793.67,0.00014956,2]
[419696572,1775309433243,-26522.24355216,0.00014966,2]
[419696574,1775309433252,-150.0,0.00015,2]
[419696576,1775309433262,-150.0,0.0001504,2]
[419696578,1775309433272,-800.0,0.00015068,2]
[419696580,1775309433282,-150.0,0.00015111,2]
[419696582,1775309433292,-150.0,0.00015111,2]
[419696584,1775309433301,-150.0,0.00015111,2]
[419696586,1775309433311,-150.0,0.00015111,2]
[419696588,1775309433320,-298.194882,0.00015157,7]
[419696590,1775309433330,-578.20924308,0.00015199,2]
[419696592,1775309433340,-200.0,0.00015199,2]
[419696594,1775309433350,-174.61919141,0.00015199,2]
[419696596,1775309433359,-992.932626,0.000152,2]
[419696598,1775309433369,-690.251068,0.000152,2]
[419696600,1775309433378,-150.0,0.000152,2]
[419696602,1775309433388,-150.0,0.000152,2]
[419696604,1775309433397,-236.495659,0.00015248,7]
[419696606,1775309433409,-387.429496,0.00015248,2]
[419696608,1775309433418,-266.245423,0.00015248,7]
[419696611,1775309433429,-165.42399,0.00015248,2]
[419696613,1775309433439,-164.349027,0.00015249,7]
[419696615,1775309433448,-150.0,0.00015289,2]
[419696617,1775309433458,-150.0,0.00015289,2]
[419696619,1775309433467,-150.0,0.00015289,2]
[419696621,1775309433477,-150.0,0.00015289,2]
[419696623,1775309433487,-163.04685463,0.0001529,2]
[419696625,1775309433496,-192.64718767,0.0001529,2]
[419696626,1775309433506,-500.47064979,0.0001529,2]
[419696629,1775309433515,-164.32614955,0.0001529,2]
[419696630,1775309433525,-500.0,0.0001529,2]
[419696632,1775309433534,-350.0,0.00015322,2]
[419696634,1775309433543,-1000.0,0.00015348,2]
[419696636,1775309433553,-1007.68723107,0.00015348,2]
[419696638,1775309433562,-150.0,0.0001536,2]
[419696640,1775309433572,-305.686884,0.00015366,2]
[419696642,1775309433580,-220.0,0.00015384,2]
[419696644,1775309433590,-150.0,0.000154,2]
[419696646,1775309433599,-258.0,0.00015418,2]
[419696648,1775309433608,-150.0,0.00015466,2]
[419696651,1775309433618,-150.0,0.00015467,2]
[419696652,1775309433627,-150.0,0.00015467,2]
[419696654,1775309433636,-150.0,0.00015467,2]
[419696657,1775309433656,-150.0,0.00015467,2]
[419696660,1775309433667,-150.0,0.00015467,2]
[419696662,1775309433677,-2254.75,0.00015507,2]
[419696664,1775309433686,-220.0,0.00015522,2]
[419696666,1775309433696,-211.4,0.00015522,2]
[419696668,1775309433705,-211.4,0.00015522,2]
[419696670,1775309433715,-211.4,0.00015522,2]
[419696672,1775309433724,-258.0,0.00015524,2]
[419696674,1775309433734,-565.72432124,0.00015559,2]
[419696676,1775309433744,-500.0,0.00015559,2]
[419696678,1775309433753,-500.0,0.00015559,2]
[419696680,1775309433762,-500.0,0.00015559,2]
[419696682,1775309433771,-500.0,0.00015559,2]
[419696684,1775309433780,-500.0,0.00015559,2]
[419696686,1775309433790,-500.0,0.00015559,2]
[419696688,1775309433799,-500.0,0.00015559,2]
[419696690,1775309433809,-500.0,0.00015559,2]
[419696692,1775309433819,-500.0,0.00015559,2]
[419696694,1775309433828,-500.0,0.00015559,2]
[419696696,1775309433838,-500.0,0.00015559,2]
[419696698,1775309433848,-500.0,0.00015559,2]
[419696700,1775309433857,-500.0,0.00015559,2]
[419696702,1775309433867,-500.0,0.00015559,2]
[419696704,1775309433877,-500.0,0.00015559,2]
[419696706,1775309433888,-500.0,0.00015559,2]
[419696708,1775309433897,-500.0,0.00015559,2]
[419696710,1775309433907,-500.0,0.00015559,2]
[419696712,1775309433919,-500.0,0.00015559,2]
[419696714,1775309433928,-500.0,0.00015559,2]
[419696715,1775309433938,-500.0,0.00015559,2]
[419696716,1775309433948,-500.0,0.00015559,2]
[419696717,1775309433958,-500.0,0.00015559,2]
[419696718,1775309433968,-500.0,0.00015559,2]
[419696719,1775309433978,-500.0,0.00015559,2]
[419696720,1775309433988,-500.0,0.00015559,2]
[419696721,1775309433998,-500.0,0.00015559,2]
[419696722,1775309434009,-500.0,0.00015559,2]
[419696723,1775309434019,-500.0,0.00015559,2]
[419696725,1775309434030,-500.0,0.00015559,2]
[419696727,1775309434040,-500.0,0.00015559,2]
[419696730,1775309434050,-500.0,0.00015559,2]
[419696732,1775309434059,-500.0,0.00015559,2]
[419696734,1775309434068,-227.36724816,0.00015559,2]
[419696736,1775309434077,-500.0,0.00015559,2]
[419696738,1775309434088,-500.0,0.00015559,2]
[419696740,1775309434098,-500.0,0.00015559,2]
[419696742,1775309434107,-500.0,0.00015559,2]
[419696744,1775309434116,-500.0,0.00015559,2]
[419696746,1775309434125,-500.0,0.00015559,2]
[419696748,1775309434135,-500.0,0.00015559,2]
[419696750,1775309434145,-500.0,0.00015559,2]
[419696752,1775309434158,-500.0,0.00015559,2]
[419696754,1775309434168,-500.0,0.00015559,2]
[419696756,1775309434177,-500.0,0.00015559,2]
[419696758,1775309434187,-500.0,0.00015559,2]
[419696760,1775309434196,-500.0,0.00015559,2]
[419696762,1775309434207,-500.0,0.00015559,2]
[419696764,1775309434217,-500.0,0.00015559,2]
[419696766,1775309434226,-500.0,0.00015559,2]
[419696768,1775309434235,-500.0,0.00015559,2]
[419696770,1775309434245,-500.0,0.00015559,2]
[419696772,1775309434255,-5532.0,0.0001556,2]
[419696774,1775309434264,-220.0,0.00015585,2]
[419696776,1775309434273,-150.0,0.000156,2]
[419696778,1775309434283,-150.0,0.000156,2]
[419696780,1775309434293,-500.0,0.0001562,2]
[419696782,1775309434302,-1442.23,0.00015621,2]
[419696784,1775309434312,-150.0,0.00015644,2]
[419696786,1775309434321,-150.0,0.00015644,2]
[419696788,1775309434331,-150.0,0.00015644,2]
[419696790,1775309434340,-150.0,0.00015644,2]
[419696793,1775309434350,-500.0,0.00015649,2]
[419696795,1775309434359,-500.0,0.00015649,2]
[419696797,1775309434368,-500.0,0.00015649,2]
[419696812,1775309434760,-500.0,0.00015649,2]
[419696813,1775309434771,-1103.13390672,0.0001568,2]
[419696814,1775309434781,-150.0,0.0001568,2]
[419696815,1775309434791,-2911.0,0.000157,2]
[419696816,1775309434800,-500.0,0.00015726,2]
[419696817,1775309434809,-800.0,0.00015726,2]
[419696818,1775309434819,-793.67,0.00015737,2]
[419696819,1775309434828,-200.0,0.00015747,2]
[419696820,1775309434837,-181.08010149,0.00015747,2]
[419696821,1775309434846,-1000.0,0.00015786,2]
[419696822,1775309434855,-150.0,0.000158,2]
[419696823,1775309434865,-2000.0,0.00015801,2]
[419696824,1775309434874,-150.0,0.00015822,2]
[419696825,1775309434883,-150.0,0.00015822,2]
[419696826,1775309434892,-150.0,0.00015822,2]
[419696827,1775309434902,-150.0,0.00015822,2]
[419696828,1775309434911,-220.0,0.00015825,2]
[419696829,1775309434920,-1000.0,0.00015828,2]
[419696830,1775309434930,-220.0,0.00015834,2]
[419696831,1775309434939,-1000.0,0.00015836,2]
[419696832,1775309434951,-1000.0,0.00015838,2]
[419696833,1775309434960,-2000.0,0.0001584,2]
[419696834,1775309434969,-2000.0,0.0001584,2]
[419696835,1775309434979,-2000.0,0.0001584,2]
[419696836,1775309434987,-1000.0,0.00015841,2]
[419696837,1775309434996,-1000.0,0.00015842,2]
[419696838,1775309435006,-1000.0,0.00015848,2]
[419696839,1775309435015,-220.0,0.00015854,2]
[419696840,1775309435025,-500.0,0.00015859,2]
[419696841,1775309435034,-3624.968,0.0001586,2]
[419696842,1775309435043,-1046.0,0.0001586,2]
[419696843,1775309435052,-622.0,0.0001586,2]
[419696844,1775309435062,-1351.61,0.0001586,2]
[419696845,1775309435071,-150.0,0.0001586,2]
[419696846,1775309435080,-6019.0,0.0001586,2]
[419696847,1775309435089,-500.0,0.00015871,2]
[419696848,1775309435099,-200.0,0.00015871,2]
[419696849,1775309435108,-500.0,0.00015872,2]
[419696850,1775309435118,-500.0,0.00015872,2]
[419696851,1775309435127,-200.0,0.00015872,2]
[419696852,1775309435138,-500.0,0.00015873,2]
[419696853,1775309435147,-501.32196063,0.00015873,2]
[419696854,1775309435156,-500.0,0.00015873,2]
[419696855,1775309435165,-500.0,0.00015873,2]
[419696856,1775309435175,-500.0,0.00015873,2]
[419696857,1775309435184,-418.29613778,0.00015873,2]
[419696858,1775309435193,-500.0,0.00015873,2]
[419696859,1775309435203,-500.0,0.00015873,2]
[419696860,1775309435212,-504.78279466,0.00015873,2]
[419696861,1775309435221,-500.0,0.00015873,2]
[419696862,1775309435232,-500.0,0.00015873,2]
[419696863,1775309435242,-501.09720442,0.00015873,2]
[419696864,1775309435251,-500.0,0.00015873,2]
[419696865,1775309435261,-500.0,0.00015873,2]
[419696866,1775309435270,-500.0,0.00015873,2]
[419696867,1775309435280,-501.31463682,0.00015873,2]
[419696868,1775309435291,-500.0,0.00015873,2]
[419696869,1775309435300,-163.76977921,0.00015873,2]
[419696870,1775309435310,-500.0,0.00015873,2]
[419696871,1775309435321,-474.3667731,0.00015873,2]
[419696872,1775309435332,-500.95538511,0.00015873,2]
[419696873,1775309435342,-500.0,0.00015873,2]
[419696874,1775309435351,-501.46955268,0.00015873,2]
[419696875,1775309435360,-500.45552889,0.00015873,2]
[419696876,1775309435372,-501.3592372,0.00015873,2]
[419696877,1775309435382,-500.0,0.00015873,2]
[419696878,1775309435392,-500.0,0.00015873,2]
[419696879,1775309435403,-500.0,0.00015873,2]
[419696880,1775309435414,-166.78281568,0.00015873,2]
[419696881,1775309435423,-500.0,0.00015873,2]
[419696882,1775309435432,-352.18026618,0.00015873,2]
[419696883,1775309435442,-500.30998217,0.00015873,2]
[419696884,1775309435452,-1000.0,0.00015881,2]
[419696885,1775309435461,-2842.557,0.0001589,2]
[419696886,1775309435471,-185.876,0.0001589,2]
[419696887,1775309435481,-220.0,0.0001589,2]
[419696888,1775309435491,-2000.0,0.0001589,2]
[419696889,1775309435502,-2254.75,0.00015895,2]
[419696890,1775309435512,-681.83603731,0.00015896,2]
[419696891,1775309435521,-500.0,0.00015898,2]
[419696892,1775309435530,-1000.0,0.00015899,2]
[419696893,1775309435540,-8160.60739818,0.00015899,2]
[419696894,1775309435550,-220.0,0.00015899,2]
[419696895,1775309435559,-10000.0,0.000159,2]
[419696896,1775309435568,-3378.4097849,0.000159,3]
[419696897,1775309435579,-5000.0,0.000159,2]
[419696898,1775309435589,-3732.73403515,0.000159,2]
[419696899,1775309435599,-3286.52630202,0.000159,2]
[419696900,1775309435610,-1694.760721,0.000159,2]
[419696901,1775309435620,-6014.43090549,0.000159,2]
[419696902,1775309435629,-300.0,0.000159,2]
[419696903,1775309435639,-2000.0,0.00015901,2]
[419696904,1775309435648,-1000.0,0.00015912,2]
[419696905,1775309435657,-1000.0,0.0001592,2]
[419696906,1775309435666,-150.0,0.00015925,2]
[419696907,1775309435676,-3434.0,0.00015972,5]
[419696908,1775309435685,-151.0,0.00015973,2]
[419696909,1775309435694,-151.0,0.00015973,2]
[419696910,1775309435703,-151.0,0.00015973,2]
[419696911,1775309435712,-267.50376984,0.00015973,2]
[419696912,1775309435722,-500.0,0.00015973,2]
[419696913,1775309435731,-500.0,0.00015973,2]
[419696914,1775309435740,-502.50396437,0.00015973,2]
[419696915,1775309435749,-500.44413655,0.00015973,2]
[419696916,1775309435759,-227.16914829,0.00015977,2]
[419696917,1775309435768,-1000.0,0.00015978,2]
[419696918,1775309435777,-604.30048596,0.00015984,2]
[419696919,1775309435786,-266.76443994,0.00015984,2]
[419696920,1775309435796,-201.40946936,0.00015984,2]
[419696921,1775309435805,-198.22659855,0.00015984,2]
[419696922,1775309435815,-202.23172774,0.00015984,2]
[419696923,1775309435824,-158.62956644,0.00015984,2]
[419696924,1775309435835,-1000.0,0.00015988,2]
[419696925,1775309435845,-500.0,0.00015989,2]
[419696926,1775309435855,-548.63911111,0.0001599,2]
[419696927,1775309435865,-548.63911111,0.0001599,2]
[419696928,1775309435874,-548.63911111,0.0001599,2]
[419696929,1775309435883,-151.0,0.00015997,2]
[419696930,1775309435892,-151.0,0.00015997,2]
[419696931,1775309435902,-500.0,0.00015998,2]
[419696932,1775309435912,-500.0,0.00015998,2]
[419696933,1775309435923,-500.0,0.00015998,2]
[419696934,1775309435932,-1297.89044282,0.00015999,2]
[419696935,1775309435941,-670.84839751,0.00015999,2]
[419696936,1775309435951,-666.0,0.00015999,2]
[419696937,1775309435960,-666.0,0.00015999,2]
[419696938,1775309435971,-33181.3036946,0.00015999,2]
[419696939,1775309435981,-121783.0340032,0.00015999,2]
[419696940,1775309435992,-2791.1378982,0.00015999,2]
[419696941,1775309436002,-37784.4587258,0.00015999,2]
[419696942,1775309436012,-500.0,0.00015999,2]
[419696943,1775309436022,-500.0,0.00015999,2]
[419696944,1775309436033,-500.0,0.00015999,2]
[419696945,1775309436043,-500.0,0.00015999,2]
[419696946,1775309436053,-163.75,0.00015999,2]
[419696947,1775309436063,-33236.6881204,0.00015999,2]
[419696948,1775309436074,-591.926592,0.00015999,2]
[419696949,1775309436084,-591.926592,0.00015999,2]
[419696950,1775309436093,-591.926592,0.00015999,2]
[419696951,1775309436102,-591.926592,0.00015999,2]
[419696952,1775309436112,-500.0,0.00015999,2]
[419696953,1775309436122,-500.0,0.00015999,2]
[419696954,1775309436132,-500.0,0.00015999,2]
[419696955,1775309436142,-500.0,0.00015999,2]
[419696956,1775309436151,-500.0,0.00015999,2]
[419696957,1775309436160,-500.0,0.00015999,2]
[419696958,1775309436170,-500.0,0.00015999,2]
[419696959,1775309436179,-500.0,0.00015999,2]
[419696960,1775309436188,-500.0,0.00015999,2]
[419696961,1775309436198,-500.0,0.00015999,2]
[419696962,1775309436207,-500.0,0.00015999,2]
[419696963,1775309436219,-500.0,0.00015999,2]
[419696964,1775309436228,-500.0,0.00015999,2]
[419696965,1775309436238,-500.0,0.00015999,2]
[419696966,1775309436247,-500.0,0.00015999,2]
[419696967,1775309436256,-500.0,0.00015999,2]
[419696968,1775309436265,-500.0,0.00015999,2]
[419696969,1775309436274,-500.0,0.00015999,2]
[419696970,1775309436283,-500.0,0.00015999,2]
[419696971,1775309436292,-500.0,0.00015999,2]
[419696972,1775309436302,-500.0,0.00015999,2]
[419696973,1775309436311,-500.0,0.00015999,2]
[419696974,1775309436320,-500.0,0.00015999,2]
[419696975,1775309436330,-500.0,0.00015999,2]
[419696976,1775309436341,-500.0,0.00015999,2]
[419696977,1775309436350,-500.0,0.00015999,2]
[419696978,1775309436360,-500.0,0.00015999,2]
[419696979,1775309436369,-500.0,0.00015999,2]
[419696980,1775309436378,-500.0,0.00015999,2]